fUSD/lending_fUSD_20250115
["ID","MTS","AMOUNT","RATE_DAILY","PERIOD"]
[349019225,1736938267549,-150.0,0.0001968,2]
[349019226,1736938267558,-150.0,0.00019681,2]
[349019227,1736938267568,-150.0,0.00019682,2]
[349019228,1736938267578,-150.0,0.00019683,2]
[349019229,1736938267588,-1500.0,0.00019707,2]
[349019230,1736938267598,-150.0,0.00019711,2]
[349019231,1736938267608,-1058.0,0.0001972,2]
[349019232,1736938267619,-150.0,0.00019721,2]
[349019233,1736938267629,-1500.0,0.00019748,2]
[349019234,1736938267639,-1500.0,0.0001975,2]
[349019235,1736938267648,-2501.16,0.00019753,2]
[349019236,1736938267658,-500.0,0.00019753,2]
[349019237,1736938267669,-999.0,0.00019753,2]
[349019238,1736938267679,-150.0,0.00019758,2]
[349019239,1736938267688,-150.0,0.00019767,2]
[349019240,1736938267698,-150.0,0.00019767,2]
[349019241,1736938267708,-150.0,0.00019768,2]
[349019242,1736938267718,-700.0,0.0001977,2]
[349019243,1736938267727,-700.0,0.0001977,2]
[349019244,1736938267737,-700.0,0.0001977,2]
[349019245,1736938267747,-500.0,0.00019772,2]
[349019246,1736938267757,-500.0,0.00019772,2]
[349019247,1736938267767,-500.0,0.00019772,2]
[349019248,1736938267775,-509.12,0.00019772,2]
[349019249,1736938267785,-435.4974822,0.00019772,2]
[349019250,1736938267794,-3000.0,0.00019772,2]
[349019251,1736938267803,-481.8426913,0.00019772,2]
[349019252,1736938267813,-2409.2134567,0.00019772,2]
[349019253,1736938267822,-1000.0,0.00019772,2]
[349019254,1736938267831,-1000.0,0.00019772,2]
[349019255,1736938267840,-1000.0,0.00019772,2]
[349019256,1736938267850,-1000.0,0.00019772,2]
[349019257,1736938267860,-1000.0,0.00019772,2]
[349019258,1736938267869,-1000.0,0.00019772,2]
[349019259,1736938267879,-1000.0,0.00019772,2]
[349019260,1736938267888,-1000.0,0.00019772,2]
[349019261,1736938267898,-1000.0,0.00019772,2]
[349019262,1736938267907,-1000.0,0.00019772,2]
[349019263,1736938267917,-11018.20550534,0.0001978,5]
[349019264,1736938267927,-14592.9151777,0.00019786,2]
[349019265,1736938267935,-24861.0836303,0.000198,5]
[349019266,1736938267944,-321.0,0.000198,7]
[349019267,1736938267954,-153.63912973,0.000198,2]
[349019268,1736938267962,-7700.0,0.000198,7]
[349019269,1736938267969,-2543.11,0.00019815,2]
[349019270,1736938267975,-2500.0,0.00019816,2]
[349019271,1736938267983,-7310.40208602,0.0001982,30]
[349019272,1736938267991,-235.35984798,0.0001982,60]
[349019273,1736938267998,-5000.0,0.0001982,120]
[349019274,1736938268006,-1000.0,0.0001982,30]
[349019275,1736938268012,-3552.34264454,0.0001982,30]
[349019276,1736938268023,-3134.61966605,0.0001982,30]
[349019277,1736938268033,-5272.20256972,0.0001982,30]
[349019278,1736938268043,-2383.84456357,0.0001982,30]
[349019279,1736938268053,-2341.39413014,0.0001982,30]
[349019280,1736938268063,-2733.24951376,0.0001982,30]
[349019281,1736938268072,-4055.1680578,0.0001982,30]
[349019282,1736938268083,-4453.88147355,0.0001982,30]
[349019283,1736938268092,-4020.49777279,0.0001982,120]
[349019284,1736938268102,-14503.44310754,0.0001982,30]
[349019285,1736938268113,-3649.40327575,0.0001982,30]
[349019286,1736938268123,-500.0,0.0001982,30]
[349019287,1736938268133,-7779.02887958,0.0001982,7]
[349019288,1736938268143,-40058.17767991,0.0001982,10]
[349019289,1736938268151,-2500.0,0.0001982,30]
[349019290,1736938268160,-7494.0,0.0001982,10]
[349019291,1736938268172,-96597.19394171,0.0001982,10]
[349019292,1736938268181,-676.29867897,0.0001982,2]
[349019293,1736938268190,-3000.0,0.0001982,30]
[349019294,1736938268200,-8001.19053508,0.0001982,2]
[349019295,1736938268210,-167.06778147,0.0001982,60]
[349019296,1736938268220,-20539.2895767,0.0001982,7]
[349019297,1736938268230,-4863.20736581,0.0001982,30]
[349019298,1736938268239,-5295.61580235,0.0001982,30]
[349019299,1736938268249,-203.81943539,0.0001982,2]
[349019300,1736938268259,-18643.83465373,0.0001982,5]
[349019301,1736938268269,-601.87052386,0.0001982,30]
[349019302,1736938268278,-10532.71598572,0.0001982,15]
[349019303,1736938268288,-4374.90762825,0.0001982,30]
[349019304,1736938268297,-7153.27423333,0.0001982,7]
[349019305,1736938268307,-3037.04958744,0.0001982,30]
[349019306,1736938268316,-158.11986364,0.0001982,30]
[349019307,1736938268326,-1665.61361894,0.0001982,2]
[349019308,1736938268335,-5001.82827674,0.0001982,2]
[349019309,1736938268345,-227.04093435,0.0001982,2]
[349019310,1736938268355,-181887.57310497,0.0001982,7]
[349019311,1736938268500,-4839.88895346,0.0001982,30]
[349019312,1736938268511,-4770.35191245,0.0001982,10]
[349019313,1736938268520,-905.10053744,0.0001982,3]
[349019314,1736938268530,-13114.79854182,0.0001982,5]
[349019315,1736938268540,-160.06477614,0.0001982,30]
[349019316,1736938268550,-2996.70667396,0.0001982,15]
[349019317,1736938268559,-5348.76547304,0.0001982,30]
[349019318,1736938268569,-156.67623239,0.0001982,30]
[349019319,1736938268579,-2656.87169106,0.0001982,30]
[349019320,1736938268589,-24396.83324075,0.0001982,14]
[349019321,1736938268599,-4513.60764788,0.0001982,120]
[349019322,1736938268609,-3925.82338084,0.0001982,30]
[349019323,1736938268620,-11628.99031591,0.0001982,5]
[349019324,1736938268630,-10010.46623719,0.0001982,10]
[349019325,1736938268640,-2575.5903132,0.0001982,30]
[349019326,1736938268650,-1058.0,0.0001982,5]
[349019327,1736938268659,-1058.0,0.0001982,5]
[349019328,1736938268670,-1058.0,0.0001982,5]
[349019329,1736938268679,-1058.0,0.0001982,5]
[349019330,1736938268689,-1058.0,0.0001982,5]
[349019331,1736938268699,-1058.0,0.0001982,5]
[349019332,1736938268709,-1058.0,0.0001982,5]
[349019333,1736938268719,-1058.0,0.0001982,5]
[349019334,1736938268729,-1058.0,0.0001982,5]
[349019335,1736938268739,-159.0,0.0001982,30]
[349019336,1736938268748,-1250.0,0.00019838,2]
[349019337,1736938268758,-86500.0,0.0001985,7]
[349019338,1736938268768,-145000.0,0.0001985,5]
[349019339,1736938268777,-500.0,0.0001985,7]
[349019340,1736938268787,-2500.0,0.00019865,2]
[349019341,1736938268797,-2500.0,0.0001987,2]
[349019342,1736938268806,-500.0,0.00019877,7]
[349019343,1736938268816,-154.65,0.00019895,2]
[349019344,1736938268826,-500.0,0.00019899,2]
[349019345,1736938268836,-10923.82223413,0.000199,5]
[349019346,1736938268846,-335304.0,0.000199,7]
[349019347,1736938268857,-2924.34448736,0.000199,7]
[349019348,1736938268867,-5373.13,0.000199,2]
[349019349,1736938268877,-9600.0,0.000199,7]
[349019350,1736938268886,-1011.88810416,0.000199,2]
[349019351,1736938268896,-3056.89784159,0.000199,2]
[349019352,1736938268905,-679.57369806,0.000199,3]
[349019353,1736938268915,-269.51993854,0.000199,2]
[349019354,1736938268925,-15667.53568031,0.000199,2]
[349019355,1736938268935,-500.0,0.00019905,7]
[349019356,1736938268945,-2500.0,0.00019914,2]
[349019357,1736938268957,-500.0,0.00019932,7]
[349019358,1736938268967,-5000.0,0.00019943,2]
[349019359,1736938268976,-581.63758995,0.0001996,7]
[349019360,1736938268987,-300.0,0.0001997,2]
[349019361,1736938268996,-300.0,0.0001997,2]
[349019362,1736938269005,-498.25703869,0.0001997,2]
[349019363,1736938269014,-150.0,0.0001997,2]
[349019364,1736938269025,-15586.0,0.00019973,2]
[349019365,1736938269035,-152.0,0.00019978,3]
[349019366,1736938269044,-3240.00000001,0.00019988,30]
[349019367,1736938269053,-425.3806102,0.00019988,30]
[349019368,1736938269062,-7942.49352221,0.0001999,7]
[349019369,1736938269072,-871.01691144,0.0001999,2]
[349019370,1736938269081,-450990.47729,0.00019998,2]
[349019371,1736938269091,-10121.79990938,0.00019998,30]
[349019372,1736938269100,-172722.83296569,0.0002,4]
[349019373,1736938269110,-1236.99039588,0.0002,2]
[349019374,1736938269119,-11700.65598043,0.0002,2]
[349019375,1736938269128,-1802.3616993,0.0002,2]
[349019376,1736938269137,-998.040248,0.0002,2]
[349019377,1736938269147,-45630.38565752,0.0002,2]
[349019378,1736938269156,-3950.0,0.0002,2]
[349019379,1736938269167,-32474.05980652,0.0002,4]
[349019380,1736938269317,-4192.29359251,0.0002,4]
[349019381,1736938269328,-75585.40050966,0.0002,4]
[349019382,1736938269338,-4252.64594608,0.0002,2]
[349019383,1736938269349,-138536.69026686,0.0002,2]
[349019384,1736938269358,-4000.0,0.0002,2]
[349019385,1736938269367,-90056.03239742,0.0002,2]
[349019386,1736938269393,-500.0,0.00010817,2]
[349019387,1736938269402,-9943.96760258,0.0002,2]
[349019388,1736938269412,-6115.72185212,0.0002,4]
[349019389,1736938269424,-747.50399139,0.0002,4]
[349019390,1736938269435,-1436.77415549,0.0002,4]
[349019391,1736938269445,-600.46104451,0.0002,2]
[349019392,1736938269456,-1520.0,0.0002,2]
[349019393,1736938269469,-2879.53895549,0.0002,2]
[349019394,1736938269478,-500.0,0.0002,2]
[349019395,1736938269487,-2500.0,0.0002,2]
[349019396,1736938269495,-2000.0,0.0002,4]
[349019397,1736938269505,-64897.85018321,0.0002,2]
[349019398,1736938269525,-500.0,0.00010817,2]
[349019399,1736938269535,-1001.26519847,0.0002,2]
[349019400,1736938269546,-941.53953476,0.0002,2]
[349019401,1736938269711,-500.0,0.00010817,2]
[349019402,1736938269720,-699.95,0.00010818,2]
[349019403,1736938269729,-714.8,0.00010818,2]
[349019404,1736938269739,-500.0,0.00011091,2]
[349019405,1736938269748,-500.0,0.00011091,2]
[349019406,1736938269757,-500.0,0.00011091,2]
[349019407,1736938269767,-500.0,0.00011092,2]
[349019408,1736938269776,-699.95,0.00011092,2]
[349019409,1736938269785,-714.8,0.00011092,2]
[349019410,1736938269795,-500.0,0.00011365,2]
[349019411,1736938269804,-500.0,0.00011365,2]
[349019412,1736938269814,-500.0,0.00011639,2]
[349019413,1736938269823,-500.0,0.00011639,2]
[349019414,1736938269832,-1411.5,0.0001164,2]
[349019415,1736938269843,-203.93,0.00011913,2]
[349019416,1736938269853,-500.0,0.00011913,2]
[349019417,1736938269863,-1411.5,0.00011914,2]
[349019418,1736938269878,-1411.5,0.00012188,2]
[349019419,1736938269888,-500.0,0.00014654,2]
[349019420,1736938269897,-500.0,0.00014928,2]
[349019421,1736938269907,-2367.42710604,0.0002,2]
[349019422,1736938269919,-10572.50379836,0.0002,2]
[349019423,1736938269930,-680.14313118,0.0002,2]
[349019424,1736938269941,-2763.0,0.0002,2]
[349019425,1736938269955,-7654.99185855,0.0002,2]
[349019426,1736938269965,-1400.142681,0.0002,2]
[349019427,1736938269974,-1390.45324782,0.0002,5]
[349019428,1736938269984,-200.0,0.0002,5]
[349019429,1736938269992,-2772.54098217,0.0002,7]
[349019430,1736938270002,-1013.0,0.0002,6]
[349019431,1736938270011,-794.51932482,0.0002,7]
[349019432,1736938270021,-2792.784912,0.0002,7]
[349019433,1736938270031,-1419.807959,0.0002,7]
[349019434,1736938270041,-3827.94866479,0.0002,5]
[349019435,1736938270051,-15001.17727345,0.0002,2]
[349019436,1736938270060,-379.0,0.0002,2]
[349019437,1736938270070,-470.81989264,0.0002,10]
[349019438,1736938270079,-160.09930614,0.0002,15]
[349019439,1736938270090,-300.0,0.0002,2]
[349019440,1736938270099,-300.0,0.0002,2]
[349019441,1736938270109,-300.0,0.0002,2]
[349019442,1736938270118,-300.0,0.0002,2]
[349019443,1736938270128,-526.52292348,0.0002,2]
[349019444,1736938270137,-224.82019344,0.0002,10]
[349019445,1736938270146,-1000.41652606,0.0002,2]
[349019446,1736938270156,-28935.56160533,0.0002,2]
[349019447,1736938270165,-162.91402963,0.0002,2]
[349019448,1736938270175,-2110.0,0.0002,2]
[349019449,1736938270185,-10138.64026413,0.0002,15]
[349019450,1736938270195,-18440.86450585,0.0002,14]
[349019451,1736938270204,-1075.2749488,0.0002,10]
[349019452,1736938270214,-5269.10796305,0.0002,3]
[349019453,1736938270223,-6000.0,0.0002,4]
[349019454,1736938270232,-500.0,0.0002,2]
[349019455,1736938270242,-500.0,0.0002,2]
[349019456,1736938270252,-703.03257457,0.0002,2]
[349019457,1736938270262,-171.0,0.0002,2]
[349019458,1736938270272,-297.65456038,0.0002,2]
[349019459,1736938270282,-7500.0,0.0002,2]
[349019460,1736938270291,-3824.47876058,0.0002,2]
[349019461,1736938270300,-58553.85623113,0.0002,2]
[349019462,1736938270309,-3258.37552336,0.0002,3]
[349019463,1736938270319,-14076.52503879,0.0002,15]
[349019464,1736938270328,-7464.61563,0.0002,7]
[349019465,1736938270339,-1800.0,0.0002,21]
[349019466,1736938270348,-1000.0,0.0002,30]
[349019467,1736938270357,-12402.24132126,0.0002,4]
[349019468,1736938270367,-768.54889618,0.0002,2]
[349019469,1736938270376,-11379.53482135,0.0002,20]
[349019470,1736938270386,-500.0,0.0002,2]
[349019471,1736938270396,-500.0,0.0002,2]
[349019472,1736938270405,-91388.7998516,0.0002,7]
[349019473,1736938270416,-895.8559,0.0002,2]
[349019474,1736938270426,-2000.0,0.0002,2]
[349019475,1736938270435,-2000.0,0.0002,2]
[349019476,1736938270444,-2000.0,0.0002,2]
[349019477,1736938270455,-420.0,0.0002,7]
[349019478,1736938270467,-500.0,0.0002,7]
[349019479,1736938270477,-319.0,0.0002,2]
[349019480,1736938270486,-319.0,0.0002,2]
[349019481,1736938270496,-319.0,0.0002,2]
[349019482,1736938270505,-319.0,0.0002,2]
[349019483,1736938270515,-2000.0,0.0002,2]
[349019484,1736938270525,-2000.0,0.0002,2]
[349019485,1736938270534,-2000.0,0.0002,2]
[349019486,1736938270543,-401.61169093,0.0002,2]
[349019487,1736938270553,-240.96701456,0.0002,2]
[349019488,1736938270563,-2000.0,0.0002,2]
[349019489,1736938270573,-222.0,0.0002,30]
[349019490,1736938270584,-159.0,0.0002,2]
[349019491,1736938270594,-159.0,0.0002,2]
[349019492,1736938270604,-150.0,0.0002,5]
[349019493,1736938270614,-150.0,0.0002,5]
[349019494,1736938270624,-10000.0,0.0002,5]
[349019495,1736938270634,-2000.0,0.0002001,2]
[349019496,1736938270644,-3791.56001,0.0002002,2]
[349019497,1736938270653,-500.0,0.00020036,2]
[349019498,1736938270663,-423.72195205,0.00020047,2]
[349019499,1736938270674,-701.51452252,0.00020072,2]
[349019500,1736938270683,-2000.0,0.00020089,2]
[349019501,1736938270693,-518.94181643,0.00020173,2]
[349019502,1736938270702,-150.0,0.00020187,2]
[349019503,1736938270712,-676.29,0.00020266,2]
[349019504,1736938270722,-804.96432547,0.0002028,2]
[349019505,1736938270731,-474.032724,0.000203,8]
[349019506,1736938270741,-152.0,0.00020335,4]
[349019507,1736938270751,-1000.0,0.0002037,2]
[349019508,1736938270760,-503.0,0.00020411,2]
[349019509,1736938270769,-423.72195205,0.00020417,2]
[349019510,1736938270779,-19990.18582941,0.00020477,3]
[349019511,1736938270788,-2110.0,0.000205,2]
[349019512,1736938270798,-20416.1,0.00020548,2]
[349019513,1736938270809,-177.29,0.00020548,2]
[349019514,1736938270819,-701.51452252,0.00020555,2]
[349019515,1736938270828,-1000.0,0.00020562,2]
[349019516,1736938270838,-150.0,0.00020692,2]
[349019517,1736938270847,-1268.0,0.00020724,2]
[349019518,1736938270856,-2016.0,0.00020724,2]
[349019519,1736938270865,-635.0,0.00020724,2]
[349019520,1736938270875,-1058.0,0.00020758,2]
[349019521,1736938270884,-2000.0,0.00020758,2]
[349019522,1736938270894,-423.72195205,0.00020788,2]
[349019523,1736938270903,-5373.13,0.000208,2]
[349019524,1736938270913,-1000.0,0.0002082,2]
[349019525,1736938270923,-7886.0,0.00020822,2]
[349019526,1736938270932,-2000.0,0.0002088,20]
[349019527,1736938270942,-1001.37,0.000209,31]
[349019528,1736938270954,-1001.37,0.000209,31]
[349019529,1736938271098,-1001.37,0.000209,31]
[349019530,1736938271109,-1001.37,0.000209,31]
[349019531,1736938271118,-1001.37,0.000209,31]
[349019532,1736938271128,-1001.37,0.000209,31]
[349019533,1736938271138,-1001.37,0.000209,31]
[349019534,1736938271147,-1001.37,0.000209,31]
[349019535,1736938271157,-1001.37,0.000209,31]
[349019536,1736938271167,-1001.37,0.000209,31]
[349019537,1736938271176,-1001.37,0.000209,31]
[349019538,1736938271186,-1001.37,0.000209,31]
[349019539,1736938271196,-1001.37,0.000209,31]
[349019540,1736938271206,-1001.37,0.000209,31]
[349019541,1736938271216,-1001.37,0.000209,31]
[349019542,1736938271226,-1001.37,0.000209,31]
[349019543,1736938271235,-29999.99,0.00020951,2]
[349019544,1736938271244,-676.29,0.00020965,2]
[349019545,1736938271254,-1142.26251138,0.00021,2]
[349019546,1736938271263,-188.47984624,0.00021,2]
[349019547,1736938271273,-22511.45231809,0.00021,2]
[349019548,1736938271282,-2000.0,0.00021,4]
[349019549,1736938271291,-408.55,0.00021,7]
[349019550,1736938271301,-1000.0,0.00021,7]
[349019551,1736938271310,-1000.0,0.00021,7]
[349019552,1736938271319,-1000.0,0.00021,7]
[349019553,1736938271328,-1000.0,0.00021,7]
[349019554,1736938271337,-1000.0,0.00021,7]
[349019555,1736938271347,-1702.22466927,0.00021,5]
[349019556,1736938271356,-1800.0,0.00021,22]
[349019557,1736938271364,-2110.0,0.00021,2]
[349019558,1736938271374,-754.9244102,0.00021,2]
[349019559,1736938271383,-500.0,0.00021,2]
[349019560,1736938271392,-578.98939133,0.00021,2]
[349019561,1736938271401,-500.0,0.00021,2]
[349019562,1736938271410,-500.0,0.00021,2]
[349019563,1736938271419,-500.0,0.00021,2]
[349019564,1736938271429,-500.0,0.00021,2]
[349019565,1736938271438,-500.0,0.00021,2]
[349019566,1736938271447,-500.0,0.00021,2]
[349019567,1736938271456,-500.0,0.00021,2]
[349019568,1736938271465,-500.0,0.00021,2]
[349019569,1736938271475,-500.0,0.00021,2]
[349019570,1736938271484,-500.0,0.00021,2]
[349019571,1736938271494,-500.0,0.00021,2]
[349019572,1736938271503,-500.0,0.00021,2]
[349019573,1736938271512,-710.34202863,0.00021,2]
[349019574,1736938271521,-972.17647717,0.00021,2]
[349019575,1736938271531,-500.0,0.00021,2]
[349019576,1736938271540,-960.64615378,0.00021,2]
[349019577,1736938271550,-500.0,0.00021,2]
[349019578,1736938271560,-500.0,0.00021,2]
[349019579,1736938271569,-500.0,0.00021,2]
[349019580,1736938271578,-500.0,0.00021,2]
[349019581,1736938271587,-500.0,0.00021,2]
[349019582,1736938271596,-537.28020333,0.00021,2]
[349019583,1736938271606,-631.04952156,0.00021,2]
[349019584,1736938271617,-500.0,0.00021,2]
[349019585,1736938271626,-500.0,0.00021,2]
[349019586,1736938271635,-500.0,0.00021,2]
[349019587,1736938271644,-500.0,0.00021,2]
[349019588,1736938271653,-500.0,0.00021,2]
[349019589,1736938271662,-500.0,0.00021,2]
[349019590,1736938271672,-700.0,0.00021,2]
[349019591,1736938271682,-500.0,0.00021,2]
[349019592,1736938271691,-700.0,0.00021,2]
[349019593,1736938271700,-700.0,0.00021,2]
[349019594,1736938271709,-500.0,0.00021,2]
[349019595,1736938271719,-700.0,0.00021,2]
[349019596,1736938271728,-500.0,0.00021,2]
[349019597,1736938271738,-700.0,0.00021,2]
[349019598,1736938271747,-700.0,0.00021,2]
[349019599,1736938271757,-700.0,0.00021,2]
[349019600,1736938271767,-500.0,0.00021,2]
[349019601,1736938271776,-700.0,0.00021,2]
[349019602,1736938271785,-700.0,0.00021,2]
[349019603,1736938271794,-838.95112052,0.00021,2]
[349019604,1736938271803,-700.0,0.00021,2]
[349019605,1736938271812,-700.0,0.00021,2]
[349019606,1736938271822,-700.0,0.00021,2]
[349019607,1736938271831,-700.0,0.00021,2]
[349019608,1736938271840,-700.0,0.00021,2]
[349019609,1736938271849,-700.0,0.00021,2]
[349019610,1736938271859,-700.0,0.00021,2]
[349019611,1736938271868,-700.0,0.00021,2]
[349019612,1736938271877,-700.0,0.00021,2]
[349019613,1736938271887,-700.0,0.00021,2]
[349019614,1736938271896,-700.0,0.00021,2]
[349019615,1736938271905,-700.0,0.00021,2]
[349019616,1736938271915,-700.0,0.00021,2]
[349019617,1736938271925,-700.0,0.00021,2]
[349019618,1736938271934,-700.0,0.00021,2]
[349019619,1736938271944,-888.69038223,0.00021,2]
[349019620,1736938271956,-1033.1743405,0.00021,2]
[349019621,1736938271966,-646.02616815,0.00021,2]
[349019622,1736938271975,-500.0,0.00021,2]
[349019623,1736938271984,-500.0,0.00021,2]
[349019624,1736938271995,-500.0,0.00021,2]
[349019625,1736938272004,-500.0,0.00021,2]
[349019626,1736938272013,-2000.0,0.00021,2]
[349019627,1736938272024,-640.50625589,0.00021,2]
[349019628,1736938272033,-2000.0,0.00021,2]
[349019629,1736938272043,-500.0,0.00021,2]
[349019630,1736938272053,-500.0,0.00021,2]
[349019631,1736938272062,-2000.0,0.00021,2]
[349019632,1736938272071,-2000.0,0.00021,2]
[349019633,1736938272080,-2000.0,0.00021,2]
[349019634,1736938272090,-2000.0,0.00021,2]
[349019635,1736938272099,-2000.0,0.00021,2]
[349019636,1736938272108,-2000.0,0.00021,2]
[349019637,1736938272118,-1200.0,0.00021,2]
[349019638,1736938272128,-2000.0,0.00021,2]
[349019639,1736938272137,-1200.0,0.00021,2]
[349019640,1736938272147,-2000.0,0.00021,2]
[349019641,1736938272156,-1200.0,0.00021,2]
[349019642,1736938272165,-2000.0,0.00021,2]
[349019643,1736938272175,-1200.0,0.00021,2]
[349019644,1736938272185,-2000.0,0.00021,2]
[349019645,1736938272194,-1200.0,0.00021,2]
[349019646,1736938272204,-2000.0,0.00021,2]
[349019647,1736938272213,-1200.0,0.00021,2]
[349019648,1736938272223,-1200.0,0.00021,2]
[349019649,1736938272233,-2506.03683909,0.00021,2]
[349019650,1736938272243,-1200.0,0.00021,2]
[349019651,1736938272252,-1200.0,0.00021,2]
[349019652,1736938272262,-1200.0,0.00021,2]
[349019653,1736938272271,-1200.0,0.00021,2]
[349019654,1736938272281,-1200.0,0.00021,2]
[349019655,1736938272290,-1200.0,0.00021,2]
[349019656,1736938272299,-2107.65414701,0.00021,2]
[349019657,1736938272308,-800.0,0.00021,2]
[349019658,1736938272319,-701.51452252,0.00021038,2]
[349019659,1736938272328,-500.11211661,0.00021096,2]
[349019660,1736938272338,-500.0,0.00021096,2]
[349019661,1736938272347,-423.72195205,0.00021159,2]
[349019662,1736938272357,-150.0,0.00021197,2]
[349019663,1736938272367,-1000.0,0.000212,2]
[349019664,1736938272376,-617.0,0.000212,2]
[349019665,1736938272386,-6028.25,0.0002137,2]
[349019666,1736938272395,-1000.0,0.0002137,2]
[349019667,1736938272404,-152.0,0.00021459,5]
[349019668,1736938272414,-481.8426913,0.00021485,2]
[349019669,1736938272424,-2409.2134567,0.00021485,2]
[349019670,1736938272434,-435.4974822,0.0002149,2]
[349019671,1736938272443,-2110.0,0.000215,2]
[349019672,1736938272453,-56742.7841508,0.000215,15]
[349019673,1736938272462,-4491.64569991,0.0002152,2]
[349019674,1736938272472,-701.51452252,0.00021521,2]
[349019675,1736938272482,-423.72195205,0.00021529,2]
[349019676,1736938272491,-11765.5284565,0.00021685,2]
[349019677,1736938272500,-175.32189135,0.00021687,2]
[349019678,1736938272510,-1900.0,0.000217,7]
[349019679,1736938272519,-7233.93446638,0.000217,2]
[349019680,1736938272528,-11000.0,0.000217,2]
[349019681,1736938272538,-5373.13,0.000217,2]
[349019682,1736938272548,-150.0,0.00021702,2]
[349019683,1736938272558,-509.97,0.00021749,2]
[349019684,1736938272568,-871.01691144,0.0002179,2]
[349019685,1736938272577,-1900.0,0.000218,7]
[349019686,1736938272587,-1000000.0,0.000218,10]
[349019687,1736938272596,-40027.8907417,0.00021841,2]
[349019688,1736938272605,-1058.0,0.0002185,2]
[349019689,1736938272615,-152.0,0.00021855,4]
[349019690,1736938272625,-1900.0,0.000219,7]
[349019691,1736938272635,-61748.50687921,0.000219,14]
[349019692,1736938272644,-3579.0,0.000219,2]
[349019693,1736938272654,-423.72195205,0.000219,2]
[349019694,1736938272663,-165.87053087,0.000219,2]
[349019695,1736938272673,-165.87053087,0.000219,2]
[349019696,1736938272682,-165.87,0.000219,2]
[349019697,1736938272692,-177.40811359,0.000219,2]
[349019698,1736938272701,-177.40811359,0.000219,2]
[349019699,1736938272710,-177.40811359,0.000219,2]
[349019700,1736938272720,-177.40811359,0.000219,2]
[349019701,1736938272730,-177.40811359,0.000219,2]
[349019702,1736938272740,-177.40811359,0.000219,2]
[349019703,1736938272750,-177.40811359,0.000219,2]
[349019704,1736938272760,-177.40811359,0.000219,2]
[349019705,1736938272770,-177.40811359,0.000219,2]
[349019706,1736938272779,-177.40811359,0.000219,2]
[349019707,1736938272789,-177.40811359,0.000219,2]
[349019708,1736938272798,-177.40811359,0.000219,2]
[349019709,1736938272808,-177.40811359,0.000219,2]
[349019710,1736938272818,-177.40811359,0.000219,2]
[349019711,1736938272828,-177.40811359,0.000219,2]
[349019712,1736938272839,-177.40811359,0.000219,2]
[349019713,1736938272849,-177.40811359,0.000219,2]
[349019714,1736938272860,-177.40811359,0.000219,2]
[349019715,1736938272870,-177.40811359,0.000219,2]
[349019716,1736938272880,-177.4,0.000219,2]
[349019717,1736938272889,-1011.88810414,0.000219,2]
[349019718,1736938272898,-3056.89784158,0.000219,2]
[349019719,1736938272909,-679.57369804,0.000219,4]
[349019720,1736938272921,-15667.5356803,0.000219,2]
[349019721,1736938272931,-2000.0,0.00021917,30]
[349019722,1736938272940,-2000.0,0.00021917,30]
[349019723,1736938272951,-2000.0,0.00021917,30]
[349019724,1736938272960,-2000.0,0.00021917,30]